Workbook

Sheet Приложение 4
D1: ПРИЛОЖЕНИЕ 1 к областной адресной программе по переселению граждан из аварийного жилищного фонда, признанного таковым с 1 января 2017 года до 1 января 2022 года, в Челябинской области
A5: Реестр жилищного фонда (многоквартирные дома, дома блокированной застройки, объекты индивидуального жилищного строительства)
A7: № п/п | B7: Наименование муниципального образования | C7: Адрес* | D7: Тип | E7: Техническое состояние | F7: Принадлежность к объектам культурного наследия (да/нет) | G7: Год ввода в эксплуатацию | H7: Дата признания аварийным/ограниченно работоспособным | I7: Сведения о жилищном фонде, подлежащем расселению | L7: Планируемая дата окончания переселения граждан | M7: Площадь застройки дома | N7: Информация о формировании земельного участка под домом
N8: площадь земельного участка | O8: кадастровый номер земельного участка | P8: характеристика земельного участка (сформирован под одним домом, не сформирован)
G9: год | H9: дата | I9: площадь, кв.м | J9: количество человек | K9: количество семей | L9: дата | M9: кв. м | N9: кв.м
A10: 1 | B10: 2 | C10: 3 | D10: 4 | E10: 5 | F10: 6 | G10: 7 | H10: 8 | I10: 9 | J10: 10 | K10: 11 | L10: 12 | M10: 13 | N10: 14 | O10: 15 | P10: 16
A11: Всего подлежит расселению | D11: X | E11: X | F11: X | G11: X | H11: X | I11: =SUM(I12) -> 224824.44 | J11: =SUM(J12) -> 12018 | K11: =SUM(K12) -> 6373 | L11: X | M11: =SUM(M12) -> 49673.87 | N11: =SUM(N12) -> 1402946.72 | O11: X | P11: X
A12: 1. Перечень аварийных многоквартирных домов, в том числе | D12: X | E12: X | F12: X | G12: X | H12: X | I12: =SUM(I13,I483) -> 224824.44 | J12: =SUM(J13,J483) -> 12018 | K12: =SUM(K13,K483) -> 6373 | L12: X | M12: =SUM(M13,M483) -> 49673.87 | N12: =SUM(N13,N483) -> 1402946.72 | O12: X | P12: X
A13: расселение которых осуществляется с участием средств Фонда | D13: X | E13: X | F13: X | G13: X | H13: X | I13: =SUM(I14,I18,I25,I54,I56,I86,I88,I145,I149,I155,I170,I259,I263,I276,I286,I306,I323,I334,I338,I353,I366,I369,I378,I387,I418,I422,I428) -> 191759.98 | J13: =SUM(J14,J18,J25,J54,J56,J86,J88,J145,J149,J155,J170,J259,J263,J276,J286,J306,J323,J334,J338,J353,J366,J369,J378,J387,J418,J422,J428) -> 10121 | K13: =SUM(K14,K18,K25,K54,K56,K86,K88,K145,K149,K155,K170,K259,K263,K276,K286,K306,K323,K334,K338,K353,K366,K369,K378,K387,K418,K422,K428) -> 5373 | L13: X | M13: =SUM(M14,M18,M25,M54,M56,M86,M88,M145,M149,M155,M170,M259,M263,M276,M286,M306,M323,M334,M338,M353,M366,M369,M378,M387,M418,M422,M428) -> 43926.37 | N13: =SUM(N14,N18,N25,N54,N56,N86,N88,N145,N149,N155,N170,N259,N263,N276,N286,N306,N323,N334,N338,N353,N366,N369,N378,N387,N418,N422,N428) -> 1345753.38 | O13: X | P13: X
A14: Итого по Агаповский муниципальный район | D14: X | E14: X | F14: X | G14: X | H14: X | I14: =SUM(I15:I17) -> 1257.2 | J14: =SUM(J15:J17) -> 92 | K14: =SUM(K15:K17) -> 33 | L14: X | M14: =SUM(M15:M17) -> 0 | N14: =SUM(N15:N17) -> 0 | O14: X | P14: X
A15: 1 | B15: п Приморский | C15: п. Приморский, ул. Коммунальная, д. 4 | D15: Многоквартирный дом | E15: Аварийный | F15: Нет | G15: 1956 | H15: 2019-09-06 | I15: 522.3 | J15: 22 | K15: 9 | L15: 2030-12-10 | P15: Не сформирован
A16: 2 | B16: с Агаповка | C16: с. Агаповка, ул. Правобережная, д. 7 | D16: Многоквартирный дом | E16: Аварийный | F16: Нет | G16: 1957 | H16: 2019-10-14 | I16: 369.2 | J16: 33 | K16: 10 | L16: 2030-12-31 | P16: Не сформирован
A17: 3 | B17: с Агаповка | C17: с. Агаповка, ул. Пролетарская, д. 11 | D17: Многоквартирный дом | E17: Аварийный | F17: Нет | G17: 1939 | H17: 2017-02-20 | I17: 365.7 | J17: 37 | K17: 14 | L17: 2030-12-10 | P17: Не сформирован
A18: Итого по Аргаяшский муниципальный район | D18: X | E18: X | F18: X | G18: X | H18: X | I18: =SUM(I19:I24) -> 2158.4 | J18: =SUM(J19:J24) -> 160 | K18: =SUM(K19:K24) -> 51 | L18: X | M18: =SUM(M19:M24) -> 0 | N18: =SUM(N19:N24) -> 3304.3 | O18: X | P18: X
A19: 4 | B19: д Акбашева | C19: д. Акбашева, ул. 30 лет Победы, д. 4 | D19: Многоквартирный дом | E19: Аварийный | F19: Нет | G19: 1979 | H19: 2019-07-24 | I19: 690.4 | J19: 54 | K19: 16 | L19: 2025-07-24 | N19: 498.5 | O19: 74:02:100002303:1103:000001 | P19: Сформирован под одним домом
A20: 5 | B20: п Чубары | C20: п. Чубары, ул. Центральная, д. 2А | D20: Многоквартирный дом | E20: Аварийный | F20: Нет | G20: 1964 | H20: 2017-12-28 | I20: 335.6 | J20: 19 | K20: 9 | L20: 2024-12-31 | N20: 427.6 | O20: не имеется | P20: Сформирован под одним домом
A21: 6 | B21: с Аргаяш | C21: с. Аргаяш, ул. Октябрьская, д. 25 | D21: Многоквартирный дом | E21: Аварийный | F21: Нет | G21: 1986 | H21: 2019-10-09 | I21: 866.2 | J21: 59 | K21: 18 | L21: 2025-09-01 | N21: 550 | O21: 74:02:0201081:1 | P21: Сформирован под одним домом
A22: 7 | B22: с Аргаяш | C22: с. Аргаяш, ул. Октябрьская, д. 29 | D22: Многоквартирный дом | E22: Аварийный | F22: Нет | G22: 1980 | H22: 2019-05-17 | I22: 178.1 | J22: 21 | K22: 6 | L22: 2025-05-17 | N22: 1542 | O22: 74:002:07391:000001:000019 | P22: Сформирован под одним домом
A23: 8 | B23: с Аргаяш | C23: с. Аргаяш, ул. Пушкина, д. 48 | D23: Многоквартирный дом | E23: Аварийный | F23: Нет | G23: 1961 | H23: 2017-12-28 | I23: 57.2 | J23: 4 | K23: 1 | L23: 2024-12-31 | N23: 190.2 | O23: не имеется | P23: Сформирован под одним домом
A24: 9 | B24: с Аргаяш | C24: с. Аргаяш, ул. Элеваторная, д. 8 | D24: Многоквартирный дом | E24: Аварийный | F24: Нет | G24: 1960 | H24: 2018-09-17 | I24: 30.9 | J24: 3 | K24: 1 | L24: 2024-12-31 | N24: 96 | P24: Сформирован под одним домом
A25: Итого по Ашинский муниципальный район | D25: X | E25: X | F25: X | G25: X | H25: X | I25: =SUM(I26:I53) -> 11446.4 | J25: =SUM(J26:J53) -> 529 | K25: =SUM(K26:K53) -> 309 | L25: X | M25: =SUM(M26:M53) -> 857.2 | N25: =SUM(N26:N53) -> 10314.8 | O25: X | P25: X
A26: 10 | B26: Аша | C26: г. Аша, ул. Арматурная, д. 63 | D26: Многоквартирный дом | E26: Аварийный | F26: Нет | G26: 1959 | H26: 2020-02-04 | I26: 163 | J26: 11 | K26: 6 | L26: 2030-12-31 | N26: 653 | O26: 74:03:1014006:34 | P26: Сформирован под одним домом
A27: 11 | B27: Аша | C27: г. Аша, ул. Кирова, д. 1 | D27: Многоквартирный дом | E27: Аварийный | F27: Нет | G27: 1938 | H27: 2019-05-24 | I27: 62.7 | J27: 3 | K27: 2 | L27: 2029-12-31 | N27: 1008 | O27: 74:03:1002006:18 | P27: Сформирован под одним домом
A28: 12 | B28: Аша | C28: г. Аша, ул. Ленинградская, д. 11 | D28: Многоквартирный дом | E28: Аварийный | F28: Нет | G28: 1907 | H28: 2021-10-12 | I28: 114.3 | J28: 6 | K28: 5 | L28: 2031-09-30 | N28: 190.6 | O28: 74:03:1008020:6 | P28: Сформирован под одним домом
A29: 13 | B29: Аша | C29: г. Аша, ул. Мира, д. 65 | D29: Многоквартирный дом | E29: Аварийный | F29: Нет | G29: 1939 | H29: 2017-12-06 | I29: 188.9 | J29: 14 | K29: 6 | L29: 2028-12-31 | N29: 300 | O29: 74:03:1006007:6 | P29: Сформирован под одним домом
A30: 14 | B30: Аша | C30: г. Аша, ул. Некрасова, д. 3 | D30: Многоквартирный дом | E30: Аварийный | F30: Нет | H30: 2021-10-11 | I30: 179.6 | J30: 16 | K30: 6 | L30: 2031-12-31 | N30: 155.7 | O30: 74:03:1005002:53 | P30: Сформирован под одним домом
A31: 15 | B31: Аша | C31: г. Аша, ул. Осокина, д. 10 | D31: Многоквартирный дом | E31: Аварийный | F31: Нет | G31: 1926 | H31: 2019-11-07 | I31: 186.8 | J31: 10 | K31: 4 | L31: 2030-01-01 | N31: 237.8 | O31: 74:03:1008021:11 | P31: Сформирован под одним домом
A32: 16 | B32: Аша | C32: г. Аша, ул. Узкоколейная, д. 17 | D32: Многоквартирный дом | E32: Аварийный | F32: Нет | H32: 2021-01-29 | I32: 76.4 | J32: 6 | K32: 5 | L32: 2030-12-31 | P32: Не сформирован
A33: 17 | B33: Кропачево | C33: рп. Кропачево, ул. Пушкина, д. 61 | D33: Многоквартирный дом | E33: Аварийный | F33: Нет | G33: 1957 | H33: 2021-12-02 | I33: 105.9 | J33: 4 | K33: 4 | L33: 2030-12-31 | N33: 105.9 | O33: 74:03:0902020:30 | P33: Сформирован под одним домом
A34: 18 | B34: Кропачево | C34: рп. Кропачево, ул. Свердлова, д. 104а | D34: Многоквартирный дом | E34: Аварийный | F34: Нет | G34: 1953 | H34: 2020-02-28 | I34: 176 | J34: 5 | K34: 3 | L34: 2030-02-28 | N34: 257.4 | O34: 74:03:0902007:35 | P34: Сформирован под одним домом
A35: 19 | B35: Миньяр | C35: г. Миньяр, ул. Заикина, д. 6 | D35: Многоквартирный дом | E35: Аварийный | F35: Нет | G35: 1953 | H35: 2021-11-08 | I35: 635.1 | J35: 21 | K35: 12 | L35: 2031-11-08 | N35: 924 | O35: 74:03:0703037:11 | P35: Сформирован под одним домом
A36: 20 | B36: Миньяр | C36: г. Миньяр, ул. Заикина, д. 8 | D36: Многоквартирный дом | E36: Аварийный | F36: Нет | G36: 1954 | H36: 2021-11-08 | I36: 580.8 | J36: 29 | K36: 13 | L36: 2031-11-08 | N36: 825 | O36: 74:03:0703037:12 | P36: Сформирован под одним домом
A37: 21 | B37: Миньяр | C37: г. Миньяр, ул. Захарычев Бугор, д. 3 | D37: Многоквартирный дом | E37: Аварийный | F37: Нет | G37: 1960 | H37: 2021-11-08 | I37: 654.3 | J37: 17 | K37: 11 | L37: 2025-12-25 | N37: 839 | O37: 74:03:0708053:7 | P37: Сформирован под одним домом
A38: 22 | B38: Миньяр | C38: г. Миньяр, ул. Садовая, д. 10 | D38: Многоквартирный дом | E38: Аварийный | F38: Нет | G38: 1929 | H38: 2021-10-19 | I38: 357.8 | J38: 15 | K38: 15 | L38: 2025-01-01 | P38: Не сформирован
A39: 23 | B39: Миньяр | C39: г. Миньяр, ул. Чертова, д. 5 | D39: Многоквартирный дом | E39: Аварийный | F39: Нет | G39: 1954 | H39: 2021-10-06 | I39: 1161.4 | J39: 48 | K39: 21 | L39: 2031-10-07 | O39: 74:03:0714031:12 | P39: Сформирован под одним домом
A40: 24 | B40: Миньяр | C40: г. Миньяр, ул. Чертова, д. 6 | D40: Многоквартирный дом | E40: Аварийный | F40: Нет | G40: 1955 | H40: 2019-02-12 | I40: 1049.5 | J40: 35 | K40: 25 | L40: 2025-12-31 | N40: 2026 | O40: 74:03:0714031:11 | P40: Сформирован под одним домом
A41: 25 | B41: п Ерал, жд ст | C41: с. Ерал, рзд. 1774 км, д. 4 | D41: Многоквартирный дом | E41: Аварийный | F41: Нет | H41: 2021-10-12 | I41: 231 | J41: 9 | K41: 4 | L41: 2031-12-31 | P41: Не сформирован
A42: 26 | B42: п Ук | C42: п. Ук, ул. Ленина, д. 30 | D42: Многоквартирный дом | E42: Аварийный | F42: Нет | H42: 2021-07-30 | I42: 88.8 | J42: 3 | K42: 3 | L42: 2031-12-30 | P42: Не сформирован
A43: 27 | B43: Сим | C43: г. Сим, ул. 40 лет Октября, д. 19 | D43: Многоквартирный дом | E43: Аварийный | F43: Нет | G43: 1961 | H43: 2021-12-27 | I43: 1518 | J43: 61 | K43: 29 | L43: 2024-12-31 | P43: Не сформирован
A44: 28 | B44: Сим | C44: г. Сим, ул. 40 лет Октября, д. 46 | D44: Многоквартирный дом | E44: Аварийный | F44: Нет | G44: 1991 | H44: 2021-12-27 | I44: 247.1 | J44: 18 | K44: 9 | L44: 2024-12-31 | P44: Не сформирован
A45: 29 | B45: Сим | C45: г. Сим, ул. 40 лет Октября, д. 47 | D45: Многоквартирный дом | E45: Аварийный | F45: Нет | G45: 1968 | H45: 2020-01-31 | I45: 184.2 | J45: 10 | K45: 7 | L45: 2024-12-31 | M45: 384 | N45: 474 | O45: 74:03:0804015:11 | P45: Сформирован под одним домом
A46: 30 | B46: Сим | C46: г. Сим, ул. 40 лет Октября, д. 48 | D46: Многоквартирный дом | E46: Аварийный | F46: Нет | G46: 1968 | H46: 2020-02-28 | I46: 531.2 | J46: 20 | K46: 14 | L46: 2024-12-31 | M46: 473.2 | N46: 462.2 | O46: 74:03:0804015:5 | P46: Не сформирован
A47: 31 | B47: Сим | C47: г. Сим, ул. 40 лет Октября, д. 49 | D47: Многоквартирный дом | E47: Аварийный | F47: Нет | G47: 1970 | H47: 2020-08-07 | I47: 420.6 | J47: 13 | K47: 8 | L47: 2024-12-31 | P47: Не сформирован
A48: 32 | B48: Сим | C48: г. Сим, ул. 40 лет Октября, д. 51 | D48: Многоквартирный дом | E48: Аварийный | F48: Нет | G48: 1971 | H48: 2020-06-09 | I48: 534.2 | J48: 8 | K48: 8 | L48: 2024-12-31 | N48: 621 | O48: 74:03:0804015:10 | P48: Сформирован под одним домом
A49: 33 | B49: Сим | C49: г. Сим, ул. 40 лет Октября, д. 54 | D49: Многоквартирный дом | E49: Аварийный | F49: Нет | G49: 1983 | H49: 2020-08-07 | I49: 604.1 | J49: 21 | K49: 12 | L49: 2024-12-31 | P49: Не сформирован
A50: 34 | B50: Сим | C50: г. Сим, ул. Железнодорожная, д. 93 | D50: Многоквартирный дом | E50: Аварийный | F50: Нет | G50: 1955 | H50: 2021-06-21 | I50: 275.6 | J50: 29 | K50: 11 | L50: 2025-12-31 | N50: 688.5 | O50: 74:03:0806002:3 | P50: Сформирован под одним домом
A51: 35 | B51: Сим | C51: г. Сим, ул. Кирзавод, д. 5 | D51: Многоквартирный дом | E51: Аварийный | F51: Нет | G51: 1931 | H51: 2020-11-30 | I51: 117 | J51: 15 | K51: 6 | L51: 2024-12-31 | P51: Не сформирован
A52: 36 | B52: Сим | C52: г. Сим, ул. Пушкина, д. 7 | D52: Многоквартирный дом | E52: Аварийный | F52: Нет | G52: 1967 | H52: 2021-12-27 | I52: 927.3 | J52: 79 | K52: 58 | L52: 2024-12-31 | N52: 546.7 | O52: 74:03:0814013:28 | P52: Сформирован под одним домом
A53: 37 | B53: Сим | C53: г. Сим, ул. Свердлова, д. 5 | D53: Многоквартирный дом | E53: Аварийный | F53: Нет | G53: 1901 | H53: 2021-12-27 | I53: 74.8 | J53: 3 | K53: 2 | L53: 2024-12-31 | P53: Не сформирован
A54: Итого по Верхнеуральский муниципальный район | D54: X | E54: X | F54: X | G54: X | H54: X | I54: =SUM(I55) -> 432.7 | J54: =SUM(J55) -> 12 | K54: =SUM(K55) -> 9 | L54: X | M54: =SUM(M55) -> 0 | N54: =SUM(N55) -> 2250 | O54: X | P54: X
A55: 38 | B55: п Смеловская, жд ст | C55: ст. Смеловская, ул. Вокзальная, д. 1 | D55: Многоквартирный дом | E55: Аварийный | F55: Нет | G55: 1967 | H55: 2018-05-14 | I55: 432.7 | J55: 12 | K55: 9 | L55: 2025-12-31 | N55: 2250 | O55: 74:06:1904001:31 | P55: Сформирован под одним домом
A56: Итого по Верхнеуфалейский городской округ | D56: X | E56: X | F56: X | G56: X | H56: X | I56: =SUM(I57:I85) -> 10186.34 | J56: =SUM(J57:J85) -> 477 | K56: =SUM(K57:K85) -> 222 | L56: X | M56: =SUM(M57:M85) -> 1000 | N56: =SUM(N57:N85) -> 31164.8 | O56: X | P56: X
A57: 39 | B57: Верхний Уфалей | C57: г. Верхний Уфалей, ул. Вокзальная, д. 8 | D57: Многоквартирный дом | E57: Аварийный | F57: Нет | G57: 1950 | H57: 2018-01-12 | I57: 350.4 | J57: 15 | K57: 5 | L57: 2025-12-30 | N57: 1585 | O57: 74:27:0102008:19 | P57: Сформирован под одним домом
A58: 40 | B58: Верхний Уфалей | C58: г. Верхний Уфалей, ул. Вокзальная, д. 10 | D58: Многоквартирный дом | E58: Аварийный | F58: Нет | G58: 1950 | H58: 2021-10-18 | I58: 254.6 | J58: 7 | K58: 3 | L58: 2025-12-28 | N58: 324.5 | P58: Не сформирован
A59: 41 | B59: Верхний Уфалей | C59: г. Верхний Уфалей, ул. Гранильная, д. 16 | D59: Многоквартирный дом | E59: Аварийный | F59: Нет | G59: 1934 | H59: 2021-10-18 | I59: 51.3 | J59: 4 | K59: 2 | L59: 2025-12-25 | N59: 122 | P59: Сформирован под одним домом
A60: 42 | B60: Верхний Уфалей | C60: г. Верхний Уфалей, ул. Карла Маркса, д. 117 | D60: Многоквартирный дом | E60: Аварийный | F60: Нет | G60: 1941 | H60: 2017-12-21 | I60: 446.5 | J60: 22 | K60: 8 | L60: 2025-12-30 | N60: 1192 | O60: 74:27:0104018:24 | P60: Сформирован под одним домом
A61: 43 | B61: Верхний Уфалей | C61: г. Верхний Уфалей, ул. Кирова, д. 26 | D61: Многоквартирный дом | E61: Аварийный | F61: Нет | G61: 1949 | H61: 2017-06-21 | I61: 666.8 | J61: 33 | K61: 11 | L61: 2025-12-30 | N61: 1149 | O61: 74:27:0104056:26 | P61: Сформирован под одним домом
A62: 44 | B62: Верхний Уфалей | C62: г. Верхний Уфалей, ул. Лермонтова, д. 3. | D62: Многоквартирный дом | E62: Аварийный | F62: Нет | G62: 1955 | H62: 2021-06-11 | I62: 477.6 | J62: 39 | K62: 24 | L62: 2025-12-25 | N62: 1018 | O62: 74:27:0105029:253 | P62: Сформирован под одним домом
A63: 45 | B63: Верхний Уфалей | C63: г. Верхний Уфалей, ул. Лермонтова, д. 8 | D63: Многоквартирный дом | E63: Аварийный | F63: Нет | H63: 2017-03-09 | I63: 772.54 | J63: 40 | K63: 18 | L63: 2025-12-30 | N63: 1019.3 | P63: Сформирован под одним домом
A64: 46 | B64: Верхний Уфалей | C64: г. Верхний Уфалей, ул. Мамина-Сибиряка, д. 2 | D64: Многоквартирный дом | E64: Аварийный | F64: Нет | G64: 1953 | H64: 2017-12-21 | I64: 459 | J64: 19 | K64: 9 | L64: 2025-12-30 | N64: 1038 | O64: 74:27:0105003:14 | P64: Сформирован под одним домом
A65: 47 | B65: Верхний Уфалей | C65: г. Верхний Уфалей, ул. Маяковского, д. 3 | D65: Многоквартирный дом | E65: Аварийный | F65: Нет | G65: 1953 | H65: 2017-10-17 | I65: 415.3 | J65: 20 | K65: 8 | L65: 2025-12-30 | N65: 733 | O65: 74:27:0105029:251 | P65: Сформирован под одним домом
A66: 48 | B66: Верхний Уфалей | C66: г. Верхний Уфалей, ул. Маяковского, д. 5 | D66: Многоквартирный дом | E66: Аварийный | F66: Нет | G66: 1952 | H66: 2017-08-30 | I66: 382.3 | J66: 16 | K66: 8 | L66: 2025-12-30 | N66: 1457 | P66: Не сформирован
A67: 49 | B67: Верхний Уфалей | C67: г. Верхний Уфалей, ул. Маяковского, д. 7 | D67: Многоквартирный дом | E67: Аварийный | F67: Нет | G67: 1952 | H67: 2017-10-17 | I67: 380.8 | J67: 17 | K67: 8 | L67: 2025-12-30 | M67: 233.4 | N67: 636 | O67: 74:27:0105029:250 | P67: Сформирован под одним домом
A68: 50 | B68: Верхний Уфалей | C68: г. Верхний Уфалей, ул. Маяковского, д. 9 | D68: Многоквартирный дом | E68: Аварийный | F68: Нет | G68: 1952 | H68: 2018-01-12 | I68: 417.8 | J68: 18 | K68: 9 | L68: 2025-12-30 | N68: 739 | O68: 74:27:0105029:248 | P68: Сформирован под одним домом
A69: 51 | B69: Верхний Уфалей | C69: г. Верхний Уфалей, ул. Маяковского, д. 12 | D69: Многоквартирный дом | E69: Аварийный | F69: Нет | G69: 1933 | H69: 2017-01-30 | I69: 439.4 | J69: 17 | K69: 9 | L69: 2025-12-30 | N69: 2441 | O69: 74:27:0105037:37 | P69: Сформирован под одним домом
A70: 52 | B70: Верхний Уфалей | C70: г. Верхний Уфалей, ул. Нязепетровская, д. 1 | D70: Многоквартирный дом | E70: Аварийный | F70: Нет | G70: 1940 | H70: 2017-02-22 | I70: 216 | J70: 10 | K70: 4 | L70: 2025-12-30 | M70: 202.4 | N70: 503 | O70: 74:27:0104018:31 | P70: Сформирован под одним домом
A71: 53 | B71: Верхний Уфалей | C71: г. Верхний Уфалей, ул. Победы, д. 22 | D71: Многоквартирный дом | E71: Аварийный | F71: Нет | G71: 1973 | H71: 2017-03-29 | I71: 585.9 | J71: 33 | K71: 14 | L71: 2024-12-30 | N71: 845 | O71: 74:27:0105029:53 | P71: Сформирован под одним домом
A72: 54 | B72: Верхний Уфалей | C72: г. Верхний Уфалей, ул. Победы, д. 30 | D72: Многоквартирный дом | E72: Аварийный | F72: Нет | G72: 1953 | H72: 2017-10-17 | I72: 585.7 | J72: 28 | K72: 13 | L72: 2025-12-30 | N72: 1096 | O72: 74:27:0105029:254 | P72: Сформирован под одним домом
A73: 55 | B73: Верхний Уфалей | C73: г. Верхний Уфалей, ул. Победы, д. 33 | D73: Многоквартирный дом | E73: Аварийный | F73: Нет | G73: 1933 | H73: 2017-05-02 | I73: 572.8 | J73: 24 | K73: 12 | L73: 2025-12-30 | N73: 854 | O73: 74:27:0105029:54 | P73: Сформирован под одним домом
A74: 56 | B74: Верхний Уфалей | C74: г. Верхний Уфалей, п. Пригородный, ул. 40 лет Октября, д. 2а | D74: Многоквартирный дом | E74: Аварийный | F74: Нет | G74: 1975 | H74: 2017-05-19 | I74: 501 | J74: 18 | K74: 8 | L74: 2025-12-30 | N74: 1745 | O74: 74:27:0106003:29 | P74: Сформирован под одним домом
A75: 57 | B75: Верхний Уфалей | C75: г. Верхний Уфалей, п. Пригородный, ул. Партизанская, д. 8А | D75: Многоквартирный дом | E75: Аварийный | F75: Нет | G75: 1968 | H75: 2018-08-30 | I75: 90.3 | J75: 8 | K75: 3 | L75: 2025-12-30 | N75: 986 | P75: Сформирован под одним домом
A76: 58 | B76: Верхний Уфалей | C76: г. Верхний Уфалей, п. Пригородный, ул. Партизанская, д. 17 | D76: Многоквартирный дом | E76: Аварийный | F76: Нет | G76: 1960 | H76: 2021-08-27 | I76: 110.2 | J76: 4 | K76: 4 | L76: 2025-12-28 | N76: 988 | P76: Не сформирован
A77: 59 | B77: Верхний Уфалей | C77: г. Верхний Уфалей, п. Пригородный, ул. Пирогова, д. 10 | D77: Многоквартирный дом | E77: Аварийный | F77: Нет | G77: 1962 | H77: 2021-06-11 | I77: 87.2 | J77: 3 | K77: 2 | L77: 2025-12-29 | N77: 1460 | P77: Не сформирован
A78: 60 | B78: Верхний Уфалей | C78: г. Верхний Уфалей, ул. Прямицына, д. 21 | D78: Многоквартирный дом | E78: Аварийный | F78: Нет | G78: 1950 | H78: 2017-08-30 | I78: 250.7 | J78: 15 | K78: 5 | L78: 2025-12-30 | N78: 193 | O78: 74:27:0104050:29 | P78: Сформирован под одним домом
A79: 61 | B79: Верхний Уфалей | C79: г. Верхний Уфалей, ул. Суворова, д. 5 | D79: Многоквартирный дом | E79: Аварийный | F79: Нет | H79: 2021-04-15 | I79: 309 | J79: 10 | K79: 7 | L79: 2025-12-25 | N79: 3290 | P79: Не сформирован
A80: 62 | B80: Верхний Уфалей | C80: г. Верхний Уфалей, ул. Хохрякова, д. 19 | D80: Многоквартирный дом | E80: Аварийный | F80: Нет | G80: 1949 | H80: 2017-05-19 | I80: 251.7 | J80: 9 | K80: 4 | L80: 2025-12-30 | N80: 193 | O80: 74:27:0104056:30 | P80: Сформирован под одним домом
A81: 63 | B81: Верхний Уфалей | C81: г. Верхний Уфалей, ул. Хохрякова, д. 21 | D81: Многоквартирный дом | E81: Аварийный | F81: Нет | G81: 1947 | H81: 2017-05-10 | I81: 251.1 | J81: 12 | K81: 5 | L81: 2025-12-30 | N81: 505 | O81: 74:27:0104056:27 | P81: Сформирован под одним домом
A82: 64 | B82: Верхний Уфалей | C82: г. Верхний Уфалей, п. Черемшанка, ул. Советская, д. 17 | D82: Многоквартирный дом | E82: Аварийный | F82: Нет | G82: 1958 | H82: 2020-04-29 | I82: 213.6 | J82: 10 | K82: 5 | L82: 2025-12-29 | M82: 272.7 | N82: 944 | P82: Сформирован под одним домом
A83: 65 | B83: Верхний Уфалей | C83: г. Верхний Уфалей, п. Черемшанка, ул. Советская, д. 19 | D83: Многоквартирный дом | E83: Аварийный | F83: Нет | G83: 1958 | H83: 2017-05-02 | I83: 105.8 | J83: 5 | K83: 2 | L83: 2025-12-30 | N83: 1578 | P83: Сформирован под одним домом
A84: 66 | B84: Верхний Уфалей | C84: г. Верхний Уфалей, п. Черемшанка, ул. Советская, д. 21 | D84: Многоквартирный дом | E84: Аварийный | F84: Нет | G84: 1959 | H84: 2017-05-29 | I84: 214.3 | J84: 8 | K84: 4 | L84: 2025-12-30 | M84: 291.5 | N84: 1209 | P84: Не сформирован
A85: 67 | B85: Верхний Уфалей | C85: г. Верхний Уфалей, п. Черемшанка, ул. Советская, д. 23 | D85: Многоквартирный дом | E85: Аварийный | F85: Нет | G85: 1959 | H85: 2017-12-21 | I85: 326.7 | J85: 13 | K85: 8 | L85: 2025-12-30 | N85: 1322 | P85: Не сформирован
A86: Итого по Еманжелинский муниципальный район | D86: X | E86: X | F86: X | G86: X | H86: X | I86: =SUM(I87) -> 1173.6 | J86: =SUM(J87) -> 46 | K86: =SUM(K87) -> 19 | L86: X | M86: =SUM(M87) -> 2744.9 | N86: =SUM(N87) -> 4010 | O86: X | P86: X
A87: 68 | B87: Красногорский | C87: рп. Красногорский, ул. Победы, д. 7 | D87: Многоквартирный дом | E87: Аварийный | F87: Нет | G87: 1954 | H87: 2021-06-15 | I87: 1173.6 | J87: 46 | K87: 19 | L87: 2035-12-01 | M87: 2744.9 | N87: 4010 | O87: 74:28:0301004:113 | P87: Сформирован под одним домом
A88: Итого по Златоустовский городской округ | D88: X | E88: X | F88: X | G88: X | H88: X | I88: =SUM(I89:I144) -> 33005.36 | J88: =SUM(J89:J144) -> 1900 | K88: =SUM(K89:K144) -> 845 | L88: X | M88: =SUM(M89:M144) -> 5860 | N88: =SUM(N89:N144) -> 44941.2 | O88: X | P88: X
A89: 69 | B89: Златоуст | C89: г. Златоуст, ул. Генераторная, д. 5 | D89: Многоквартирный дом | E89: Аварийный | F89: Нет | G89: 1933 | H89: 2020-05-07 | I89: 1257.1 | J89: 46 | K89: 23 | L89: 2025-01-01 | M89: 792 | O89: 74:25:0302104:38 | P89: Сформирован под одним домом
A90: 70 | B90: Златоуст | C90: г. Златоуст, ул. Генераторная, д. 7 | D90: Многоквартирный дом | E90: Аварийный | F90: Нет | G90: 1935 | H90: 2018-12-27 | I90: 1388 | J90: 65 | K90: 34 | L90: 2025-01-01 | N90: 612 | O90: 74:25:0302104:51 | P90: Сформирован под одним домом
A91: 71 | B91: Златоуст | C91: г. Златоуст, ул. Генераторная, д. 35 | D91: Многоквартирный дом | E91: Аварийный | F91: Нет | G91: 1955 | H91: 2020-03-31 | I91: 435 | J91: 16 | K91: 7 | L91: 2025-01-01 | M91: 295 | N91: 295 | O91: 74:20:0302103:15 | P91: Сформирован под одним домом
A92: 72 | B92: Златоуст | C92: г. Златоуст, ул. Дворцовая, д. 6 | D92: Многоквартирный дом | E92: Аварийный | F92: Нет | G92: 1958 | H92: 2018-01-10 | I92: 1851.7 | J92: 132 | K92: 58 | L92: 2026-01-01 | N92: 1547 | O92: 74:25:0308205:6 | P92: Сформирован под одним домом
A93: 73 | B93: Златоуст | C93: г. Златоуст, ул. им А.И. Герцена, д. 1 | D93: Многоквартирный дом | E93: Аварийный | F93: Нет | G93: 1947 | H93: 2020-02-05 | I93: 878.9 | J93: 50 | K93: 28 | L93: 2025-01-01 | M93: 744 | N93: 1050 | O93: 74:25:0303002:25 | P93: Сформирован под одним домом
A94: 74 | B94: Златоуст | C94: г. Златоуст, ул. им А.И. Герцена, д. 3 | D94: Многоквартирный дом | E94: Аварийный | F94: Нет | G94: 1947 | H94: 2021-09-03 | I94: 886.7 | J94: 43 | K94: 25 | L94: 2025-01-01 | M94: 635 | N94: 2633 | O94: 74:25:0303002:22 | P94: Сформирован под одним домом
A95: 75 | B95: Златоуст | C95: г. Златоуст, ул. им Виталия Ковшова, д. 23 | D95: Многоквартирный дом | E95: Аварийный | F95: Нет | G95: 1930 | H95: 2018-11-20 | I95: 1304.39 | J95: 73 | K95: 34 | L95: 2025-01-01 | N95: 2176 | O95: 74:25:0303214:61 | P95: Сформирован под одним домом
A96: 76 | B96: Златоуст | C96: г. Златоуст, ул. им В.Т. Геппа, д. 8 | D96: Многоквартирный дом | E96: Аварийный | F96: Нет | G96: 1931 | H96: 2018-08-31 | I96: 824.44 | J96: 57 | K96: 23 | L96: 2026-01-01 | N96: 746 | O96: 74:25:0304403:36 | P96: Сформирован под одним домом
A97: 77 | B97: Златоуст | C97: г. Златоуст, ул. им И.Н. Бушуева, д. 5 | D97: Многоквартирный дом | E97: Аварийный | F97: Нет | G97: 1929 | H97: 2019-04-26 | I97: 612.05 | J97: 64 | K97: 26 | L97: 2025-01-01 | N97: 2527 | O97: 74:25:0304301:71 | P97: Сформирован под одним домом
A98: 78 | B98: Златоуст | C98: г. Златоуст, ул. им И.Н. Бушуева, д. 7 | D98: Многоквартирный дом | E98: Аварийный | F98: Нет | G98: 1949 | H98: 2021-09-03 | I98: 782.1 | J98: 39 | K98: 22 | L98: 2025-01-01 | N98: 1546 | O98: 74:25:0304301:70 | P98: Сформирован под одним домом
A99: 79 | B99: Златоуст | C99: г. Златоуст, ул. им И.С.Тургенева, д. 3 | D99: Многоквартирный дом | E99: Аварийный | F99: Нет | G99: 1953 | H99: 2021-02-18 | I99: 765.3 | J99: 63 | K99: 38 | L99: 2025-01-01 | N99: 642 | O99: 74:25:0308205:40 | P99: Сформирован под одним домом
A100: 80 | B100: Златоуст | C100: г. Златоуст, ул. им К.С. Заслонова, д. 7 | D100: Многоквартирный дом | E100: Аварийный | F100: Нет | G100: 1952 | H100: 2017-04-27 | I100: 477 | J100: 19 | K100: 8 | L100: 2025-01-01 | N100: 440 | O100: 74:25:0302609:18 | P100: Сформирован под одним домом
A101: 81 | B101: Златоуст | C101: г. Златоуст, ул. им К.С. Заслонова, д. 9 | D101: Многоквартирный дом | E101: Аварийный | F101: Нет | G101: 1952 | H101: 2019-05-06 | I101: 397 | J101: 15 | K101: 8 | L101: 2025-01-01 | N101: 437 | O101: 74:25:0302609:22 | P101: Сформирован под одним домом
A102: 82 | B102: Златоуст | C102: г. Златоуст, ул. им К.С. Заслонова, д. 11 | D102: Многоквартирный дом | E102: Аварийный | F102: Нет | G102: 1952 | H102: 2017-02-07 | I102: 243.2 | J102: 18 | K102: 5 | L102: 2025-01-01 | N102: 348 | O102: 74:25:0302609:20 | P102: Сформирован под одним домом
A103: 83 | B103: Златоуст | C103: г. Златоуст, ул. им Н.Г. Чернышевского, д. 4 | D103: Многоквартирный дом | E103: Аварийный | F103: Нет | G103: 1957 | H103: 2019-08-14 | I103: 289.9 | J103: 12 | K103: 6 | L103: 2025-01-01 | N103: 344 | O103: 74:25:0303005:13 | P103: Сформирован под одним домом
A104: 84 | B104: Златоуст | C104: г. Златоуст, ул. им Н.Г. Чернышевского, д. 6 | D104: Многоквартирный дом | E104: Аварийный | F104: Нет | G104: 1957 | H104: 2019-06-18 | I104: 263.6 | J104: 10 | K104: 6 | L104: 2025-01-01 | N104: 1231 | O104: 74:25:0303005:15 | P104: Сформирован под одним домом
A105: 85 | B105: Златоуст | C105: г. Златоуст, ул. им Н.Г. Чернышевского, д. 9 | D105: Многоквартирный дом | E105: Аварийный | F105: Нет | G105: 1937 | H105: 2017-12-15 | I105: 668.4 | J105: 32 | K105: 13 | L105: 2025-01-01 | N105: 805 | O105: 74:25:0303002:33 | P105: Сформирован под одним домом
A106: 86 | B106: Златоуст | C106: г. Златоуст, ул. им Н.Г. Чернышевского, д. 25 | D106: Многоквартирный дом | E106: Аварийный | F106: Нет | G106: 1948 | H106: 2020-05-07 | I106: 619.2 | J106: 30 | K106: 16 | L106: 2025-01-01 | M106: 496 | N106: 1217 | O106: 74:25:0303005:12 | P106: Сформирован под одним домом
A107: 87 | B107: Златоуст | C107: г. Златоуст, ул. им П.П. Аносова, д. 196 | D107: Многоквартирный дом | E107: Аварийный | F107: Нет | G107: 1940 | H107: 2018-11-20 | I107: 448.9 | J107: 19 | K107: 8 | L107: 2025-01-01 | N107: 364 | O107: 74:25:0301416:25 | P107: Сформирован под одним домом
A108: 88 | B108: Златоуст | C108: г. Златоуст, ул. им Риты Сергеевой, д. 27 | D108: Многоквартирный дом | E108: Аварийный | F108: Нет | G108: 1948 | H108: 2019-04-11 | I108: 686.7 | J108: 32 | K108: 18 | L108: 2025-01-01 | N108: 252 | O108: 74:25:0302104:56 | P108: Сформирован под одним домом
A109: 89 | B109: Златоуст | C109: г. Златоуст, ул. им Риты Сергеевой, д. 31 | D109: Многоквартирный дом | E109: Аварийный | F109: Нет | G109: 1948 | H109: 2018-11-20 | I109: 655.01 | J109: 35 | K109: 17 | L109: 2025-01-01 | N109: 1105 | O109: 74:25:0302103:9 | P109: Сформирован под одним домом
A110: 90 | B110: Златоуст | C110: г. Златоуст, ул. им Риты Сергеевой, д. 33 | D110: Многоквартирный дом | E110: Аварийный | F110: Нет | G110: 1948 | H110: 2020-02-05 | I110: 283.4 | J110: 8 | K110: 6 | L110: 2025-01-01 | N110: 1004 | O110: 74:25:0302103:10 | P110: Сформирован под одним домом
A111: 91 | B111: Златоуст | C111: г. Златоуст, ул. им Риты Сергеевой, д. 35 | D111: Многоквартирный дом | E111: Аварийный | F111: Нет | G111: 1948 | H111: 2018-08-13 | I111: 626.2 | J111: 41 | K111: 15 | L111: 2025-01-01 | N111: 1102 | O111: 74:25:0302103:11 | P111: Сформирован под одним домом
A112: 92 | B112: Златоуст | C112: г. Златоуст, ул. им Риты Сергеевой, д. 39 | D112: Многоквартирный дом | E112: Аварийный | F112: Нет | G112: 1946 | H112: 2017-12-15 | I112: 503.3 | J112: 30 | K112: 11 | L112: 2025-01-01 | N112: 1235 | O112: 74:25:0302103:13 | P112: Сформирован под одним домом
A113: 93 | B113: Златоуст | C113: г. Златоуст, ул. им С.М. Кирова, д. 4 | D113: Многоквартирный дом | E113: Аварийный | F113: Нет | G113: 1923 | H113: 2018-11-12 | I113: 905.51 | J113: 37 | K113: 17 | L113: 2026-01-01 | N113: 1714.2 | O113: 74:25:0302101:13 | P113: Сформирован под одним домом
A114: 94 | B114: Златоуст | C114: г. Златоуст, ул. им С.М. Кирова, д. 5 | D114: Многоквартирный дом | E114: Аварийный | F114: Нет | G114: 1923 | H114: 2018-03-30 | I114: 1466.32 | J114: 102 | K114: 38 | L114: 2026-01-01 | N114: 1055 | O114: 74:25:0302101:12 | P114: Сформирован под одним домом
A115: 95 | B115: Златоуст | C115: г. Златоуст, ул. им Я.М. Свердлова, д. 100 | D115: Многоквартирный дом | E115: Аварийный | F115: Нет | G115: 1952 | H115: 2019-01-24 | I115: 335.1 | J115: 18 | K115: 8 | L115: 2025-01-01 | N115: 375 | O115: 74:25:0301410:26 | P115: Сформирован под одним домом
A116: 96 | B116: Златоуст | C116: г. Златоуст, п. Комсомольский, д. 19 | D116: Многоквартирный дом | E116: Аварийный | F116: Нет | G116: 1955 | H116: 2019-08-15 | I116: 351.5 | J116: 36 | K116: 15 | L116: 2025-01-01 | N116: 653 | O116: 74:25:0307201:45 | P116: Сформирован под одним домом
A117: 97 | B117: Златоуст | C117: г. Златоуст, ш. Кусинское, д. 1 | D117: Многоквартирный дом | E117: Аварийный | F117: Нет | G117: 1948 | H117: 2020-05-07 | I117: 507.4 | J117: 24 | K117: 14 | L117: 2027-01-01 | M117: 592 | N117: 2415 | O117: 74:25:0302008:15 | P117: Сформирован под одним домом
A118: 98 | B118: Златоуст | C118: г. Златоуст, ш. Кусинское, д. 2 | D118: Многоквартирный дом | E118: Аварийный | F118: Нет | G118: 1957 | H118: 2019-12-16 | I118: 534.2 | J118: 21 | K118: 12 | L118: 2027-01-01 | N118: 550 | O118: 74:25:0302008:18 | P118: Сформирован под одним домом
A119: 99 | B119: Златоуст | C119: г. Златоуст, ш. Кусинское, д. 4 | D119: Многоквартирный дом | E119: Аварийный | F119: Нет | G119: 1946 | H119: 2019-06-18 | I119: 451 | J119: 16 | K119: 10 | L119: 2027-01-01 | N119: 556 | O119: 74:25:0302008:13 | P119: Сформирован под одним домом
A120: 100 | B120: Златоуст | C120: г. Златоуст, ш. Кусинское, д. 7 | D120: Многоквартирный дом | E120: Аварийный | F120: Нет | G120: 1946 | H120: 2020-05-07 | I120: 415.5 | J120: 16 | K120: 11 | L120: 2027-01-01 | M120: 436 | N120: 545 | O120: 74:25:0302008:14 | P120: Сформирован под одним домом
A121: 101 | B121: Златоуст | C121: г. Златоуст, ш. Кусинское, д. 9 | D121: Многоквартирный дом | E121: Аварийный | F121: Нет | G121: 1946 | H121: 2018-08-31 | I121: 492.3 | J121: 35 | K121: 13 | L121: 2026-01-01 | N121: 543 | O121: 74:25:0303003:42 | P121: Сформирован под одним домом
A122: 102 | B122: Златоуст | C122: г. Златоуст, ш. Кусинское, д. 10 | D122: Многоквартирный дом | E122: Аварийный | F122: Нет | G122: 1951 | H122: 2018-08-31 | I122: 722.1 | J122: 56 | K122: 16 | L122: 2027-01-01 | N122: 765 | O122: 74:25:0303003:41 | P122: Сформирован под одним домом
A123: 103 | B123: Златоуст | C123: г. Златоуст, ш. Кусинское, д. 11 | D123: Многоквартирный дом | E123: Аварийный | F123: Нет | G123: 1945 | H123: 2018-08-31 | I123: 624.4 | J123: 49 | K123: 15 | L123: 2026-01-01 | N123: 626 | O123: 74:25:0303003:38 | P123: Сформирован под одним домом
A124: 104 | B124: Златоуст | C124: г. Златоуст, ул. Нижне-Вокзальная 5-я, д. 129 | D124: Многоквартирный дом | E124: Аварийный | F124: Нет | G124: 1940 | H124: 2020-05-07 | I124: 633 | J124: 38 | K124: 21 | L124: 2025-01-01 | M124: 776 | N124: 3100 | O124: 74:25:0302609:17 | P124: Сформирован под одним домом
A125: 105 | B125: Златоуст | C125: г. Златоуст, ул. Нижне-Вокзальная 5-я, д. 131 | D125: Многоквартирный дом | E125: Аварийный | F125: Нет | G125: 1952 | H125: 2019-10-30 | I125: 459.5 | J125: 12 | K125: 8 | L125: 2025-01-01 | N125: 948 | O125: 74:25:0302609:27 | P125: Сформирован под одним домом
A126: 106 | B126: Златоуст | C126: г. Златоуст, ул. Парижской Коммуны, д. 6 | D126: Многоквартирный дом | E126: Аварийный | F126: Нет | G126: 1958 | H126: 2019-03-15 | I126: 353.7 | J126: 33 | K126: 8 | L126: 2025-01-01 | N126: 326 | O126: 74:25:0303009:12 | P126: Сформирован под одним домом
A127: 107 | B127: Златоуст | C127: г. Златоуст, ул. Парижской Коммуны, д. 8 | D127: Многоквартирный дом | E127: Аварийный | F127: Нет | G127: 1958 | H127: 2019-03-15 | I127: 352.5 | J127: 25 | K127: 8 | L127: 2025-01-01 | N127: 360 | O127: 74:25:0303009:17 | P127: Сформирован под одним домом
A128: 108 | B128: Златоуст | C128: г. Златоуст, ул. Парижской Коммуны, д. 9 | D128: Многоквартирный дом | E128: Аварийный | F128: Нет | G128: 1958 | H128: 2017-03-20 | I128: 402 | J128: 18 | K128: 8 | L128: 2027-01-01 | N128: 325 | O128: 74:25:0303009:16 | P128: Сформирован под одним домом
A129: 109 | B129: Златоуст | C129: г. Златоуст, ул. Парижской Коммуны, д. 10 | D129: Многоквартирный дом | E129: Аварийный | F129: Нет | G129: 1958 | H129: 2019-03-15 | I129: 361.8 | J129: 20 | K129: 8 | L129: 2025-01-01 | N129: 325 | O129: 74:25:0303009:13 | P129: Сформирован под одним домом
A130: 110 | B130: Златоуст | C130: г. Златоуст, ул. Парижской Коммуны, д. 11 | D130: Многоквартирный дом | E130: Аварийный | F130: Нет | G130: 1958 | H130: 2019-03-15 | I130: 403.9 | J130: 21 | K130: 9 | L130: 2025-01-01 | N130: 325 | O130: 74:25:0303009:14 | P130: Сформирован под одним домом
A131: 111 | B131: Златоуст | C131: г. Златоуст, ул. Парижской Коммуны, д. 13 | D131: Многоквартирный дом | E131: Аварийный | F131: Нет | G131: 1958 | H131: 2019-03-15 | I131: 380.7 | J131: 27 | K131: 9 | L131: 2025-01-01 | N131: 256 | O131: 74:25:0303009:9 | P131: Сформирован под одним домом
A132: 112 | B132: Златоуст | C132: г. Златоуст, ул. Парижской Коммуны, д. 15 | D132: Многоквартирный дом | E132: Аварийный | F132: Нет | G132: 1959 | H132: 2019-03-15 | I132: 383.9 | J132: 21 | K132: 9 | L132: 2025-01-01 | N132: 246 | O132: 74:25:0303009:27 | P132: Сформирован под одним домом
A133: 113 | B133: Златоуст | C133: г. Златоуст, ул. Парижской Коммуны, д. 16 | D133: Многоквартирный дом | E133: Аварийный | F133: Нет | G133: 1958 | H133: 2019-03-15 | I133: 373.25 | J133: 16 | K133: 8 | L133: 2025-01-01 | N133: 294 | O133: 74:25:0303009:28 | P133: Сформирован под одним домом
A134: 114 | B134: Златоуст | C134: г. Златоуст, ул. Парижской Коммуны, д. 17 | D134: Многоквартирный дом | E134: Аварийный | F134: Нет | G134: 1958 | H134: 2017-08-10 | I134: 306.4 | J134: 21 | K134: 7 | L134: 2026-01-01 | N134: 332 | O134: 74:25:0303009:18 | P134: Сформирован под одним домом
A135: 115 | B135: Златоуст | C135: г. Златоуст, ул. Свободы, д. 10 | D135: Многоквартирный дом | E135: Аварийный | F135: Нет | G135: 1958 | H135: 2019-03-15 | I135: 451.9 | J135: 26 | K135: 10 | L135: 2025-01-01 | N135: 320 | O135: 74:25:0303009:21 | P135: Сформирован под одним домом
A136: 116 | B136: Златоуст | C136: г. Златоуст, ул. Свободы, д. 12 | D136: Многоквартирный дом | E136: Аварийный | F136: Нет | G136: 1958 | H136: 2019-03-15 | I136: 403 | J136: 25 | K136: 8 | L136: 2025-01-01 | N136: 323 | O136: 74:25:0303009:22 | P136: Сформирован под одним домом
A137: 117 | B137: Златоуст | C137: г. Златоуст, ул. Свободы, д. 14 | D137: Многоквартирный дом | E137: Аварийный | F137: Нет | G137: 1958 | H137: 2019-03-15 | I137: 367.7 | J137: 29 | K137: 8 | L137: 2025-01-01 | N137: 315 | O137: 74:25:0303009:26 | P137: Сформирован под одним домом
A138: 118 | B138: Златоуст | C138: г. Златоуст, ул. Свободы, д. 16 | D138: Многоквартирный дом | E138: Аварийный | F138: Нет | G138: 1958 | H138: 2019-03-15 | I138: 369.7 | J138: 27 | K138: 9 | L138: 2025-01-01 | N138: 312 | O138: 74:25:0303009:19 | P138: Сформирован под одним домом
A139: 119 | B139: Златоуст | C139: г. Златоуст, ул. Северная, д. 2 | D139: Многоквартирный дом | E139: Аварийный | F139: Нет | G139: 1957 | H139: 2017-11-10 | I139: 458.09 | J139: 32 | K139: 14 | L139: 2027-01-01 | N139: 410 | O139: 74:25:0304625:34 | P139: Сформирован под одним домом
A140: 120 | B140: Златоуст | C140: г. Златоуст, ул. Спортивная, д. 101 | D140: Многоквартирный дом | E140: Аварийный | F140: Нет | G140: 1971 | H140: 2019-06-05 | I140: 689.4 | J140: 51 | K140: 26 | L140: 2025-01-01 | N140: 718 | O140: 74:25:0302709:18 | P140: Сформирован под одним домом
A141: 121 | B141: Златоуст | C141: г. Златоуст, ул. Спортивная, д. 103 | D141: Многоквартирный дом | E141: Аварийный | F141: Нет | G141: 1962 | H141: 2020-02-05 | I141: 676.8 | J141: 30 | K141: 12 | L141: 2025-01-01 | M141: 744 | N141: 750 | O141: 74:25:0302709:16 | P141: Сформирован под одним домом
A142: 122 | B142: Златоуст | C142: г. Златоуст, ул. Тесьминская 2-я, д. 129 | D142: Многоквартирный дом | E142: Аварийный | F142: Нет | G142: 1958 | H142: 2019-08-30 | I142: 631.1 | J142: 24 | K142: 16 | L142: 2025-01-01 | N142: 456 | O142: 74:25:0302501:31 | P142: Сформирован под одним домом
A143: 123 | B143: Златоуст | C143: г. Златоуст, ул. Тесьминская 3-я, д. 110 | D143: Многоквартирный дом | E143: Аварийный | F143: Нет | G143: 1958 | H143: 2018-01-10 | I143: 180 | J143: 28 | K143: 7 | L143: 2027-01-01 | M143: 350 | N143: 720 | O143: 74:25:0302503:40 | P143: Сформирован под одним домом
A144: 124 | B144: Златоуст | C144: г. Златоуст, ул. Тесьминская 3-я, д. 133 | D144: Многоквартирный дом | E144: Аварийный | F144: Нет | G144: 1945 | H144: 2018-11-12 | I144: 414.2 | J144: 17 | K144: 8 | L144: 2026-01-01 | N144: 325 | O144: 74:25:0302501:18 | P144: Сформирован под одним домом
A145: Итого по Карталинский муниципальный район | D145: X | E145: X | F145: X | G145: X | H145: X | I145: =SUM(I146:I148) -> 1194.9 | J145: =SUM(J146:J148) -> 67 | K145: =SUM(K146:K148) -> 35 | L145: X | M145: =SUM(M146:M148) -> 0 | N145: =SUM(N146:N148) -> 32143.27 | O145: X | P145: X
A146: 125 | B146: Карталы | C146: г. Карталы, ул. Акмолинская, д. 64А | D146: Многоквартирный дом | E146: Аварийный | F146: Нет | G146: 1958 | H146: 2021-12-30 | I146: 562.86 | J146: 28 | K146: 14 | L146: 2025-01-01 | N146: 778 | O146: 74:08:4702044:1736 | P146: Сформирован под одним домом
A147: 126 | B147: Карталы | C147: г. Карталы, ул. Железнодорожная, д. 2а | D147: Многоквартирный дом | E147: Аварийный | F147: Нет | G147: 1951 | H147: 2018-07-06 | I147: 309.48 | J147: 19 | K147: 10 | L147: 2025-12-30 | N147: 30213.27 | O147: 74:08:4702042:55 | P147: Сформирован под одним домом
A148: 127 | B148: п Запасное, жд ст | C148: п. Запасное, ул. Центральная, д. 1 | D148: Многоквартирный дом | E148: Аварийный | F148: Нет | G148: 1933 | H148: 2018-02-20 | I148: 322.56 | J148: 20 | K148: 11 | L148: 2026-01-01 | N148: 1152 | O148: 74:08:3301001:565 | P148: Сформирован под одним домом
A149: Итого по Каслинский муниципальный район | D149: X | E149: X | F149: X | G149: X | H149: X | I149: =SUM(I150:I154) -> 1587.1 | J149: =SUM(J150:J154) -> 78 | K149: =SUM(K150:K154) -> 27 | L149: X | M149: =SUM(M150:M154) -> 494 | N149: =SUM(N150:N154) -> 1802 | O149: X | P149: X
A150: 128 | B150: Вишневогорск | C150: рп. Вишневогорск, ул. Ленина, д. 45 | D150: Многоквартирный дом | E150: Аварийный | F150: Нет | G150: 1952 | H150: 2019-08-19 | I150: 201.7 | J150: 12 | K150: 1 | L150: 2025-06-01 | O150: 74:09:0401003:461 | P150: Не сформирован
A151: 129 | B151: Вишневогорск | C151: рп. Вишневогорск, ул. Пионерская, д. 15 | D151: Многоквартирный дом | E151: Аварийный | F151: Нет | G151: 1956 | H151: 2019-04-27 | I151: 376.4 | J151: 18 | K151: 7 | L151: 2025-01-01 | P151: Не сформирован
A152: 130 | B152: Касли | C152: г. Касли, ул. Василия Комиссарова, д. 155 | D152: Многоквартирный дом | E152: Аварийный | F152: Нет | G152: 1917 | H152: 2018-11-12 | I152: 272 | J152: 19 | K152: 9 | L152: 2025-06-01 | M152: 202 | P152: Не сформирован
A153: 131 | B153: Касли | C153: г. Касли, ул. Декабристов, д. 144 | D153: Многоквартирный дом | E153: Аварийный | F153: Нет | G153: 1955 | H153: 2018-12-27 | I153: 363.6 | J153: 11 | K153: 2 | L153: 2028-12-31 | M153: 292 | N153: 1802 | O153: 74:09:1101043:0006 | P153: Сформирован под одним домом
A154: 132 | B154: с Тюбук | C154: с. Тюбук, ул. Гагарина, д. 9 | D154: Многоквартирный дом | E154: Аварийный | F154: Нет | G154: 1960 | H154: 2020-01-20 | I154: 373.4 | J154: 18 | K154: 8 | L154: 2027-05-31 | P154: Не сформирован
A155: Итого по Катав-Ивановский муниципальный район | D155: X | E155: X | F155: X | G155: X | H155: X | I155: =SUM(I156:I169) -> 7079.6 | J155: =SUM(J156:J169) -> 295 | K155: =SUM(K156:K169) -> 204 | L155: X | M155: =SUM(M156:M169) -> 0 | N155: =SUM(N156:N169) -> 601.8 | O155: X | P155: X
A156: 133 | B156: Катав-Ивановск | C156: г. Катав-Ивановск, ул. Дмитрия Тараканова, д. 35 | D156: Многоквартирный дом | E156: Аварийный | F156: Нет | G156: 1933 | H156: 2020-12-07 | I156: 735 | J156: 27 | K156: 27 | L156: 2026-09-01 | P156: Сформирован под одним домом
A157: 134 | B157: Катав-Ивановск | C157: г. Катав-Ивановск, ул. Ленина, д. 5 | D157: Многоквартирный дом | E157: Аварийный | F157: Нет | G157: 1932 | H157: 2019-07-09 | I157: 540 | J157: 50 | K157: 20 | L157: 2027-12-31 | P157: Сформирован под одним домом
A158: 135 | B158: Катав-Ивановск | C158: г. Катав-Ивановск, ул. Ленина, д. 13 | D158: Многоквартирный дом | E158: Аварийный | F158: Нет | G158: 1954 | H158: 2019-08-26 | I158: 675.9 | J158: 21 | K158: 12 | L158: 2025-01-01 | O158: 74:10:0422006:19 | P158: Сформирован под одним домом
A159: 136 | B159: Катав-Ивановск | C159: г. Катав-Ивановск, ул. Мельникова, д. 2 | D159: Многоквартирный дом | E159: Аварийный | F159: Нет | G159: 1956 | H159: 2019-02-26 | I159: 484.4 | J159: 22 | K159: 8 | L159: 2027-12-31 | O159: 74:10:0420005:28 | P159: Сформирован под одним домом
A160: 137 | B160: Катав-Ивановск | C160: г. Катав-Ивановск, ул. Мельникова, д. 6 | D160: Многоквартирный дом | E160: Аварийный | F160: Нет | G160: 1960 | H160: 2020-06-08 | I160: 330 | J160: 24 | K160: 19 | L160: 2025-12-31 | O160: 74:10:0420005:48 | P160: Сформирован под одним домом
A161: 138 | B161: Катав-Ивановск | C161: г. Катав-Ивановск, ул. Олега Кошевого, д. 7 | D161: Многоквартирный дом | E161: Аварийный | F161: Нет | G161: 1956 | H161: 2020-12-29 | I161: 298.5 | J161: 8 | K161: 9 | L161: 2026-09-01 | P161: Не сформирован
A162: 139 | B162: Катав-Ивановск | C162: г. Катав-Ивановск, ул. Олега Кошевого, д. 9 | D162: Многоквартирный дом | E162: Аварийный | F162: Нет | G162: 1954 | H162: 2020-12-29 | I162: 300.8 | J162: 9 | K162: 8 | L162: 2026-09-01 | P162: Не сформирован
A163: 140 | B163: Катав-Ивановск | C163: г. Катав-Ивановск, ул. Олега Кошевого, д. 32 | D163: Многоквартирный дом | E163: Аварийный | F163: Нет | G163: 1960 | H163: 2020-06-08 | I163: 272.4 | J163: 8 | K163: 8 | L163: 2025-12-31 | P163: Не сформирован
A164: 141 | B164: Катав-Ивановск | C164: г. Катав-Ивановск, ул. Степана Разина, д. 6 | D164: Многоквартирный дом | E164: Аварийный | F164: Нет | G164: 1935 | H164: 2020-09-21 | I164: 604.5 | J164: 17 | K164: 12 | L164: 2025-12-31 | P164: Не сформирован
A165: 142 | B165: Катав-Ивановск | C165: г. Катав-Ивановск, ул. Стройгородок, д. 2 | D165: Многоквартирный дом | E165: Аварийный | F165: Нет | G165: 1962 | H165: 2020-05-18 | I165: 881 | J165: 59 | K165: 30 | L165: 2025-12-31 | O165: 74:10:0420003:3 | P165: Сформирован под одним домом
A166: 143 | B166: Катав-Ивановск | C166: г. Катав-Ивановск, ул. Стройгородок, д. 5 | D166: Многоквартирный дом | E166: Аварийный | F166: Нет | G166: 1960 | H166: 2020-05-18 | I166: 362.6 | J166: 19 | K166: 8 | L166: 2025-12-31 | O166: 74:10:0420003:5 | P166: Сформирован под одним домом
A167: 144 | B167: Катав-Ивановск | C167: г. Катав-Ивановск, ул. Цементников, д. 1 | D167: Многоквартирный дом | E167: Аварийный | F167: Нет | H167: 2020-05-18 | I167: 848.6 | J167: 12 | K167: 29 | L167: 2025-12-31 | O167: 74:10:0202002:398 | P167: Сформирован под одним домом
A168: 145 | B168: Юрюзань | C168: г. Юрюзань, ул. Карла Маркса, д. 18 | D168: Многоквартирный дом | E168: Аварийный | F168: Нет | G168: 1954 | H168: 2018-04-27 | I168: 440.6 | J168: 10 | K168: 8 | L168: 2025-12-31 | N168: 601.8 | O168: 74:10:0309009:17 | P168: Сформирован под одним домом
A169: 146 | B169: Юрюзань | C169: г. Юрюзань, ст. Красная Горка, д. 2 | D169: Многоквартирный дом | E169: Аварийный | F169: Нет | H169: 2017-06-13 | I169: 305.3 | J169: 9 | K169: 6 | L169: 2025-12-31 | P169: Не сформирован
A170: Итого по Копейский городской округ | D170: X | E170: X | F170: X | G170: X | H170: X | I170: =SUM(I171:I258) -> 31909.2 | J170: =SUM(J171:J258) -> 1541 | K170: =SUM(K171:K258) -> 822 | L170: X | M170: =SUM(M171:M258) -> 1903 | N170: =SUM(N171:N258) -> 20441.2 | O170: X | P170: X
A171: 147 | B171: Копейск | C171: г. Копейск, ул. Борьбы, д. 5 | D171: Многоквартирный дом | E171: Аварийный | F171: Нет | G171: 1932 | H171: 2017-11-01 | I171: 479.1 | J171: 23 | K171: 6 | L171: 2027-12-31 | M171: 693 | N171: 693 | O171: 74:30:0104003:540 | P171: Сформирован под одним домом
A172: 148 | B172: Копейск | C172: г. Копейск, ул. Братская, д. 2б | D172: Многоквартирный дом | E172: Аварийный | F172: Нет | H172: 2021-05-24 | I172: 132.3 | J172: 6 | K172: 6 | L172: 2031-01-01 | M172: 130.2 | N172: 221.5 | O172: 74:30:0102027:125 | P172: Не сформирован
A173: 149 | B173: Копейск | C173: г. Копейск, ул. Васенко, д. 3А | D173: Многоквартирный дом | E173: Аварийный | F173: Нет | G173: 1951 | H173: 2021-09-10 | I173: 341 | J173: 13 | K173: 8 | L173: 2032-01-01 | N173: 852 | O173: 74:30:0301029:201 | P173: Сформирован под одним домом
A174: 150 | B174: Копейск | C174: г. Копейск, ул. Васенко, д. 24 | D174: Многоквартирный дом | E174: Аварийный | F174: Нет | H174: 2021-11-22 | I174: 212.7 | J174: 5 | K174: 4 | L174: 2032-01-01 | N174: 294 | O174: 74:30:0301040:349 | P174: Сформирован под одним домом
A175: 151 | B175: Копейск | C175: г. Копейск, ул. Волкова, д. 50 | D175: Многоквартирный дом | E175: Аварийный | F175: Нет | H175: 2021-05-27 | I175: 276 | J175: 11 | K175: 10 | L175: 2031-01-01 | N175: 914 | O175: 74:30:0103004:88 | P175: Сформирован под одним домом
A176: 152 | B176: Копейск | C176: г. Копейск, ул. Гастелло, д. 4 | D176: Многоквартирный дом | E176: Аварийный | F176: Нет | G176: 1953 | H176: 2021-05-24 | I176: 385.4 | J176: 14 | K176: 8 | L176: 2031-01-01 | N176: 399 | O176: 74:30:0103008:48 | P176: Сформирован под одним домом
A177: 153 | B177: Копейск | C177: г. Копейск, ул. Гастелло, д. 17 | D177: Многоквартирный дом | E177: Аварийный | F177: Нет | G177: 1952 | H177: 2017-11-23 | I177: 497.5 | J177: 31 | K177: 10 | L177: 2027-12-31 | M177: 528 | N177: 528 | O177: 74:30:0103007:294 | P177: Сформирован под одним домом
A178: 154 | B178: Копейск | C178: г. Копейск, ул. Добролюбова, д. 3 | D178: Многоквартирный дом | E178: Аварийный | F178: Нет | G178: 1985 | H178: 2019-10-18 | I178: 197.6 | J178: 4 | K178: 4 | L178: 2025-01-01 | M178: 268.7 | N178: 383 | O178: 74:30:0301017:588 | P178: Сформирован под одним домом
A179: 155 | B179: Копейск | C179: г. Копейск, ул. Дундича, д. 25 | D179: Многоквартирный дом | E179: Аварийный | F179: Нет | G179: 1934 | H179: 2018-08-16 | I179: 147.5 | J179: 10 | K179: 4 | L179: 2027-12-31 | P179: Не сформирован
A180: 156 | B180: Копейск | C180: г. Копейск, ул. Дундича, д. 31 | D180: Многоквартирный дом | E180: Аварийный | F180: Нет | G180: 1934 | H180: 2017-10-06 | I180: 491 | J180: 17 | K180: 8 | L180: 2027-12-31 | N180: 661 | O180: 74:30:0104023:615 | P180: Сформирован под одним домом
A181: 157 | B181: Копейск | C181: г. Копейск, ул. Дундича, д. 33 | D181: Многоквартирный дом | E181: Аварийный | F181: Нет | G181: 1931 | H181: 2017-10-06 | I181: 478.7 | J181: 31 | K181: 8 | L181: 2027-12-31 | N181: 644 | O181: 74:30:0104023:613 | P181: Сформирован под одним домом
A182: 158 | B182: Копейск | C182: г. Копейск, ул. Дундича, д. 52 | D182: Многоквартирный дом | E182: Аварийный | F182: Нет | G182: 1934 | H182: 2018-12-05 | I182: 366.6 | J182: 9 | K182: 6 | L182: 2025-01-01 | N182: 916.8 | P182: Не сформирован
A183: 159 | B183: Копейск | C183: г. Копейск, ул. Железняка, д. 5 | D183: Многоквартирный дом | E183: Аварийный | F183: Нет | G183: 1955 | H183: 2017-11-01 | I183: 419.2 | J183: 27 | K183: 10 | L183: 2025-06-30 | P183: Не сформирован
A184: 160 | B184: Копейск | C184: г. Копейск, ул. Железняка, д. 7 | D184: Многоквартирный дом | E184: Аварийный | F184: Нет | G184: 1956 | H184: 2017-08-14 | I184: 427.1 | J184: 28 | K184: 11 | L184: 2025-12-31 | P184: Не сформирован
A185: 161 | B185: Копейск | C185: г. Копейск, ул. Калинина, д. 2 | D185: Многоквартирный дом | E185: Аварийный | F185: Нет | G185: 1953 | H185: 2017-11-01 | I185: 418.2 | J185: 55 | K185: 24 | L185: 2025-12-31 | P185: Не сформирован
A186: 162 | B186: Копейск | C186: г. Копейск, ул. Карла Маркса, д. 16 | D186: Многоквартирный дом | E186: Аварийный | F186: Нет | G186: 1953 | H186: 2019-12-31 | I186: 389.7 | J186: 14 | K186: 8 | L186: 2028-01-01 | N186: 460 | O186: 74:30:0103008:63 | P186: Сформирован под одним домом
A187: 163 | B187: Копейск | C187: г. Копейск, ул. Карла Маркса, д. 18 | D187: Многоквартирный дом | E187: Аварийный | F187: Нет | H187: 2020-10-22 | I187: 386.8 | J187: 22 | K187: 8 | L187: 2029-01-01 | N187: 451.5 | O187: 74:30:0103008:56 | P187: Сформирован под одним домом
A188: 164 | B188: Копейск | C188: г. Копейск, пер. Клубный 2-й, д. 8А | D188: Многоквартирный дом | E188: Аварийный | F188: Нет | G188: 1952 | H188: 2021-05-24 | I188: 390.7 | J188: 10 | K188: 8 | L188: 2031-01-01 | N188: 337 | O188: 74:30:0104004:237 | P188: Сформирован под одним домом
A189: 165 | B189: Копейск | C189: г. Копейск, пер. Клубный 2-й, д. 10 | D189: Многоквартирный дом | E189: Аварийный | F189: Нет | G189: 1930 | H189: 2017-11-01 | I189: 341.7 | J189: 12 | K189: 4 | L189: 2027-12-31 | N189: 358.3 | O189: 74:30:0104004:235 | P189: Сформирован под одним домом
A190: 166 | B190: Копейск | C190: г. Копейск, ул. Колхозная, д. 7 | D190: Многоквартирный дом | E190: Аварийный | F190: Нет | H190: 2020-10-22 | I190: 128.2 | J190: 6 | K190: 6 | L190: 2029-01-01 | P190: Не сформирован
A191: 167 | B191: Копейск | C191: г. Копейск, ул. Комсомольская, д. 8А | D191: Многоквартирный дом | E191: Аварийный | F191: Нет | G191: 1949 | H191: 2017-11-01 | I191: 419.6 | J191: 34 | K191: 14 | L191: 2027-12-31 | N191: 1213 | O191: 74:30:0701017:182 | P191: Сформирован под одним домом
A192: 168 | B192: Копейск | C192: г. Копейск, ул. Красноярская, д. 1 | D192: Многоквартирный дом | E192: Аварийный | F192: Нет | H192: 2021-09-10 | I192: 560 | J192: 14 | K192: 14 | L192: 2032-01-01 | N192: 566.3 | P192: Не сформирован
A193: 169 | B193: Копейск | C193: г. Копейск, ул. Красноярская, д. 3 | D193: Многоквартирный дом | E193: Аварийный | F193: Нет | H193: 2021-09-10 | I193: 637.3 | J193: 29 | K193: 14 | L193: 2032-01-01 | N193: 637.3 | P193: Не сформирован
A194: 170 | B194: Копейск | C194: г. Копейск, ул. Красноярская, д. 5 | D194: Многоквартирный дом | E194: Аварийный | F194: Нет | G194: 1957 | H194: 2021-09-10 | I194: 663.3 | J194: 32 | K194: 16 | L194: 2032-01-01 | P194: Не сформирован
A195: 171 | B195: Копейск | C195: г. Копейск, ул. Красноярская, д. 7 | D195: Многоквартирный дом | E195: Аварийный | F195: Нет | G195: 1957 | H195: 2021-09-10 | I195: 684.1 | J195: 27 | K195: 16 | L195: 2032-01-01 | P195: Не сформирован
A196: 172 | B196: Копейск | C196: г. Копейск, ул. Крупской, д. 26 | D196: Многоквартирный дом | E196: Аварийный | F196: Нет | G196: 1961 | H196: 2018-08-16 | I196: 143.7 | J196: 13 | K196: 6 | L196: 2025-12-31 | P196: Не сформирован
A197: 173 | B197: Копейск | C197: г. Копейск, ул. Кузнецова, д. 2 | D197: Многоквартирный дом | E197: Аварийный | F197: Нет | G197: 1927 | H197: 2017-11-01 | I197: 206.6 | J197: 14 | K197: 7 | L197: 2025-12-31 | P197: Не сформирован
A198: 174 | B198: Копейск | C198: г. Копейск, ул. Кузнецова, д. 6 | D198: Многоквартирный дом | E198: Аварийный | F198: Нет | G198: 1933 | H198: 2018-08-16 | I198: 236 | J198: 12 | K198: 8 | L198: 2025-12-31 | P198: Не сформирован
A199: 175 | B199: Копейск | C199: г. Копейск, ул. Кузнецова, д. 8 | D199: Многоквартирный дом | E199: Аварийный | F199: Нет | H199: 2021-05-24 | I199: 239.6 | J199: 8 | K199: 8 | L199: 2031-01-01 | P199: Не сформирован
A200: 176 | B200: Копейск | C200: г. Копейск, ул. Кузнечная, д. 14 | D200: Многоквартирный дом | E200: Аварийный | F200: Нет | G200: 1956 | H200: 2018-08-16 | I200: 144.7 | J200: 7 | K200: 5 | L200: 2025-01-01 | P200: Не сформирован
A201: 177 | B201: Копейск | C201: г. Копейск, ул. Кулибина, д. 3 | D201: Многоквартирный дом | E201: Аварийный | F201: Нет | H201: 2020-10-22 | I201: 550 | J201: 26 | K201: 26 | L201: 2029-01-01 | P201: Не сформирован
A202: 178 | B202: Копейск | C202: г. Копейск, ул. Ленина, д. 3 | D202: Многоквартирный дом | E202: Аварийный | F202: Нет | G202: 1931 | H202: 2018-08-16 | I202: 838.1 | J202: 38 | K202: 21 | L202: 2025-12-31 | P202: Не сформирован
A203: 179 | B203: Копейск | C203: г. Копейск, ул. Ленина, д. 32 | D203: Многоквартирный дом | E203: Аварийный | F203: Нет | G203: 1928 | H203: 2017-10-06 | I203: 456.7 | J203: 27 | K203: 8 | L203: 2025-12-31 | N203: 379 | O203: 74:30:0104003:3345 | P203: Сформирован под одним домом
A204: 180 | B204: Копейск | C204: г. Копейск, ул. Ленина, д. 34 | D204: Многоквартирный дом | E204: Аварийный | F204: Нет | G204: 1928 | H204: 2017-10-06 | I204: 455.1 | J204: 31 | K204: 8 | L204: 2025-12-31 | N204: 372 | O204: 74:30:0104003:3350 | P204: Сформирован под одним домом
... 394 more rows
